Cogmind - Beta 9.4 @@@ ROGUE MODE // 2020.01.10 @ 10:02:48 // Winter2019/RPGLIKE Player: Terminus Result: Destroyed by DAS Turret with DAS Cannon Performance ------------- Evolutions (1) 500 Regions Visited (5) 1000 Robots Destroyed (96) 480 Value Destroyed (2493) 2493 Prototype IDs (26) 520 Alien Tech Used (0) 0 Bonus (-87) -87 TOTAL SCORE: 4906 Bonus ------- High Alert Combat Kills 100 Aligned with FarCom 300 Friendly Fire -487 Cogmind --------- Core Integrity 0/700 Matter 287/300 Energy 240/280 System Corruption 0% Temperature Cool (0) Movement Flying (29) Location -9/Exiles Parts ------- > --- POWER (1) -------- Heavy Ion Engine > --- PROPULSION (4) --- Improved Flight Unit Improved Flight Unit Improved Flight Unit Improved Flight Unit > --- UTILITY (6) ------ Cooling System Signal Interpreter Hacking Suite Hacking Suite > --- WEAPON (3) ------- Improved EM Shotgun Improved EM Shotgun Plasma Cutter > --- INVENTORY (5) ---- Modified TNC Improved EM Shotgun Rocket Launcher Scythe Peak State ------------ > --- POWER ------------ Heavy Ion Engine > --- PROPULSION ------- Improved Flight Unit Improved Flight Unit Improved Flight Unit Improved Flight Unit > --- UTILITY ---------- Cooling System Signal Interpreter Light Armor Plating Medium Armor Plating Hacking Suite Hacking Suite > --- WEAPON ----------- Improved EM Shotgun Improved EM Shotgun Improved EM Shotgun > --- INVENTORY -------- Protomatter Modified TNC Rocket Launcher Plasma Cutter Scythe [Rating: 37] Favorites ----------- Power Ion Engine Engine Ion Engine Propulsion Improved Flight Unit Leg Aluminum Leg Flight Unit Improved Flight Unit Utility Cooling System Device Cooling System Processor Signal Interpreter Hackware Hacking Suite Protection Light Armor Plating Weapon Particle Cannon Energy Gun Improved EM Shotgun Energy Cannon Particle Cannon Ballistic Gun Assault Rifle Launcher Rocket Launcher Special Weapon Plasma Cutter Slashing Weapon Scythe Build | -11 -10 -10 -9 -9 -9 ------- Run | Scr Mat Min Mat Min Exi Slots Evolved 10 | 4 1 1 4 . . Power . | . . . . . . Propulsion 3 | 1 . 1 1 . . Utility 5 | 2 1 . 2 . . Weapon 2 | 1 . . 1 . . Parts Attached 42 | 5 6 1 25 . 5 Power 3 | 1 . . 2 . . Engine 3 | 1 . . 2 . . Core . | . . . . . . Reactor . | . . . . . . Propulsion 13 | 2 . 1 10 . . Treads . | . . . . . . Leg 3 | 2 . 1 . . . Wheel . | . . . . . . Hover . | . . . . . . Flight 10 | . . . 10 . . Utility 10 | . 4 . 5 . 1 Device 2 | . 2 . . . . Storage . | . . . . . . Processor 2 | . 1 . 1 . . Hackware 2 | . . . 2 . . Protection 4 | . 1 . 2 . 1 Artifact . | . . . . . . Weapon 16 | 2 2 . 8 . 4 Energy Gun 9 | 1 . . 7 . 1 Energy Cannon 2 | . 2 . . . . Ballistic Gun 1 | 1 . . . . . Ballistic Cannon . | . . . . . . Launcher 1 | . . . . . 1 Special Weapon 1 | . . . . . 1 Impact Weapon . | . . . . . . Slashing Weapon 2 | . . . 1 . 1 Piercing Weapon . | . . . . . . Special Melee Weapon . | . . . . . . Unidentified Prototypes 4 | . . . 4 . . Parts Lost 2 | . . . . . 2 Power . | . . . . . . Propulsion . | . . . . . . Utility 2 | . . . . . 2 Weapon . | . . . . . . Highest Loss Streak 1 | . . . . . 1 Average Slot Usage (%) 92 | . 86 100 91 100 94 Engine 9 | . 11 10 7 7 7 Leg 13 | . 22 29 2 . . Flight 13 | . . . 27 28 28 Device 14 | . 21 20 8 7 7 Processor 9 | . 4 10 11 14 7 Hackware 4 | . . . 7 14 14 Protection 5 | . 3 10 4 7 8 Energy Gun 8 | . . . 14 21 18 Energy Cannon 11 | . 21 20 3 . . Naked Turns . | . . . . . . Heaviest Build 30 | 8 20 20 22 22 30 Greatest Support 35 | 20 20 30 35 23 29 Greatest Overweight (x) 1 | . . . 1 . 1 Average Overweight (x) . | . . . . . . Largest Inventory Capacity 5 | 1 2 2 5 5 5 Average Capacity 2 | 1 1 2 3 5 5 Most Carried 5 | 1 2 2 5 5 5 Average Carried 2 | . 1 2 3 5 4 Final Capacity 5 | 1 2 2 5 5 5 Final Carried 5 | 1 2 2 5 5 4 Class Distribution -------------------- 53% | Mutant 35% | Hacker-Sprinter 5% | Scavenger-Mutant 4% | Hacker-Mutant Dominant Class ---------------- Mutant | -10/Materials Mutant | -10/Mines Hacker-Sprinter | -9/Materials Hacker-Sprinter | -9/Mines Hacker-Sprinter | -9/Exiles Resources | -11 -10 -10 -9 -9 -9 ----------- Run | Scr Mat Min Mat Min Exi Matter Collected 666 | 250 63 10 250 . 93 Remotely . | . . . . . . Salvage Created 3457 | . 771 270 2380 28 8 Parts 207 | . 49 14 140 4 . Haulers Intercepted 7 | . 1 . 6 . . Recyclers Shooed 3 | . 1 . 2 . . Parts Field Recycled . | . . . . . . Retrieved Matter . | . . . . . . Parts Self-Destructed . | . . . . . . Prevented . | . . . . . . Kills | -11 -10 -10 -9 -9 -9 ------- Run | Scr Mat Min Mat Min Exi Combat Hostiles Destroyed 62 | . 14 2 37 2 7 Melee 8 | . . . 8 . . Guns 24 | . 1 . 19 2 2 Cannons 22 | . 13 2 7 . . AOE 8 | . . . 3 . 5 Classes Destroyed 12 | . 8 . 3 . 1 Worker 2 | . 1 . 1 . . Tunneler 3 | . 1 2 . . . Hauler 7 | . 1 . 6 . . Recycler 10 | . 2 2 6 . . Operator 4 | . 2 . 2 . . Watcher 8 | . 3 . 5 . . Swarmer 13 | . 3 . 8 2 . Grunt 30 | . 11 2 17 . . Brawler 1 | . . . 1 . . Duelist 1 | . . . 1 . . Sentry 10 | . . . 10 . . Assembled 7 | . . . . . 7 Best Kill Streak 10 | . 6 3 10 2 7 Combat Bots Only 7 | . 5 2 6 2 7 Max Kills in Single Turn 2 | . 1 1 2 1 2 Gunslinging 1 | . . . 1 . 1 Exploded 2 | . . . 2 . 2 Melee 1 | . . . 1 . . Uniques/NPCs Destroyed 1 | . . . . . 1 8R-AWN (-9/Exiles) Combat | -11 -10 -10 -9 -9 -9 -------- Run | Scr Mat Min Mat Min Exi Damage Taken 2682 | . 310 69 1122 16 1165 Core 1990 | . 251 47 861 12 819 Absorbed by Shields . | . . . . . . Redirected to Core 1605 | . 200 47 713 12 633 Core Remaining (%) 100 | 100 . 100 . . . Volleys Fired 227 | . 49 16 125 7 30 Largest 3 | . 2 2 3 3 3 Hottest 136 | . 136 136 136 135 135 Shots Fired 515 | . 98 32 301 21 63 Gun 331 | . 2 . 254 21 54 Cannon 175 | . 96 32 47 . . Launcher 6 | . . . . . 6 Special 3 | . . . . . 3 Kinetic 1 | . 1 . . . . Thermal 179 | . 97 32 47 . 3 Explosive 6 | . . . . . 6 Electromagnetic 329 | . . . 254 21 54 Robot Hit Streak 24 | . 24 8 12 5 11 Robot Miss Streak 5 | . 2 1 5 2 3 Penetration Max . | . . . . . . Secondary Targets 3 | . . . 2 . 1 Max Gunslinging Chain 1 | . . . 1 . 1 Shots Hit Robots 303 | . 57 11 170 6 59 Core Hits 150 | . 27 7 86 4 26 Critical Hits 1 | . . . 1 . . Critical Kills 1 | . . . 1 . . Critical Parts Destroyed . | . . . . . . Melee Attacks 41 | . . . 39 . 2 Impact . | . . . . . . Slashing 41 | . . . 39 . 2 Piercing . | . . . . . . Sneak Attacks 7 | . . . 5 . 2 Combat Hostiles . | . . . . . . Follow-up Attacks . | . . . . . . Damage Inflicted 6106 | . 1161 272 3555 195 923 Guns 1776 | . 15 . 1553 121 87 Cannons 1781 | . 1146 246 389 . . Explosions 953 | . . 26 252 74 601 Melee 1560 | . . . 1361 . 199 Ramming . | . . . . . . Kinetic 15 | . 15 . . . . Thermal 2169 | . 1146 272 641 74 36 Explosive 601 | . . . . . 601 Electromagnetic 1761 | . . . 1553 121 87 Impact . | . . . . . . Slashing 1560 | . . . 1361 . 199 Piercing . | . . . . . . Highest Corruption . | . . . . . . Average Corruption . | . . . . . . Corruption Purged . | . . . . . . Overload Shots . | . . . . . . Overflow Damage 200 | . 11 . 84 . 105 Projectiles 11 | . 11 . . . . Explosions 30 | . . . . . 30 Melee 159 | . . . 84 . 75 Knockbacks . | . . . . . . Impact . | . . . . . . Kinetic . | . . . . . . Secondary . | . . . . . . Self-Inflicted Damage 164 | . . . 116 . 48 Shots 5 | . . . 4 . 1 Rammed . | . . . . . . Targets Rammed . | . . . . . . Kicked . | . . . . . . Crushed . | . . . . . . Highest Temperature 22 | . . . 16 4 22 Average Temperature 6 | . . . 5 2 12 Received Heat Transfer 568 | . 123 39 366 . 40 Siege Activations . | . . . . . . Robots Corrupted . | . . . . . . Combat Hostiles . | . . . . . . Parts Fried 11 | . . . 11 . . Impact Corruptions . | . . . . . . Robots Melted . | . . . . . . Combat Hostiles . | . . . . . . Parts Melted 4 | . 1 2 1 . . Heat Transferred 3646 | . 2072 494 1003 50 27 Parts Sabotaged . | . . . . . . Parts Stolen . | . . . . . . Parts Stripped . | . . . . . . Power Chain Reactions 7 | . . . 6 1 . Missiles Intercepted . | . . . . . . Alert | -11 -10 -10 -9 -9 -9 ------- Run | Scr Mat Min Mat Min Exi Peak Influence 711 | . 349 147 711 377 . Average Influence 209 | . 202 64 277 357 . Maximum Alert Level 3 | . 1 . 3 1 . Low Security (%) 49 | 100 47 100 30 . . Level 1 41 | . 52 . 47 100 . Level 2 8 | . . . 20 . . Level 3 . | . . . 1 . . Level 4 . | . . . . . . Level 5 . | . . . . . . High Security . | . . . . . . Max Security . | . . . . . . Squads Dispatched 7 | . 4 . 3 . . Investigation 4 | . 3 . 1 . . Extermination . | . . . . . . Reinforcement 3 | . 1 . 2 . . Assault . | . . . . . . Garrison . | . . . . . . Intercept . | . . . . . . Construction Impeded . | . . . . . . Haulers Reinforced . | . . . . . . Stealth | -11 -10 -10 -9 -9 -9 --------- Run | Scr Mat Min Mat Min Exi Distress Signals 5 | . 1 . 4 . . Communications Jammed . | . . . . . . Distress Signals . | . . . . . . Times Spotted 90 | . 23 2 49 3 13 Peak Tracking Total 9 | . 5 2 4 3 9 Tactical Retreats 4 | . 1 . 1 1 1 Traps | -11 -10 -10 -9 -9 -9 ------- Run | Scr Mat Min Mat Min Exi Traps Triggered 2 | . 2 . . . . Indirectly . | . . . . . . Trap Hack Attempts . | . . . . . . Triggered . | . . . . . . Disarmed . | . . . . . . Reprogrammed . | . . . . . . Reused . | . . . . . . Traps Extracted . | . . . . . . Installed . | . . . . . . Triggered . | . . . . . . Machines | -11 -10 -10 -9 -9 -9 ---------- Run | Scr Mat Min Mat Min Exi Machines Disabled 46 | . 4 7 28 4 3 Max in Single Turn 3 | . 1 1 3 1 1 Machines Sabotaged . | . . . . . . Garrisons Compromised . | . . . . . . Overloaded Fab Kills . | . . . . . . Fab Network Shutdowns . | . . . . . . Hacking | -11 -10 -10 -9 -9 -9 --------- Run | Scr Mat Min Mat Min Exi Machines Accessed 20 | . 8 1 10 . 1 Terminals 16 | . 6 1 9 . . Fabricators . | . . . . . . Repair Stations . | . . . . . . Recycling Units 3 | . 2 . 1 . . Scanalyzers . | . . . . . . Garrison Access . | . . . . . . Total Hacks 74 | . 23 4 46 . 1 Successful 51 | . 16 3 31 . 1 Failed 23 | . 7 1 15 . . Catastrophic . | . . . . . . Database Lockouts . | . . . . . . Manual 68 | . 22 3 42 . 1 Terminals 70 | . 21 4 45 . . Fabricators . | . . . . . . Repair Stations . | . . . . . . Recycling Units 3 | . 2 . 1 . . Scanalyzers . | . . . . . . Garrison Access . | . . . . . . Terminal Hacks 31 | . 9 2 19 . 1 Alert Level 10 | . 2 1 7 . . Unreport Threat 5 | . 1 . 4 . . Hauler Manifests 2 | . 1 . 1 . . Registered Prototypes 1 | . 1 . . . . Zone Layout 12 | . 4 1 7 . . EX-Prototype ID Bank 1 | . . . . . 1 Fabricator Hacks . | . . . . . . Repair Station Hacks . | . . . . . . Recycling Unit Hacks . | . . . . . . Scanalyzer . | . . . . . . Garrison Access Hacks . | . . . . . . Unauthorized Hacks 46 | . 17 3 26 . . Terminals 17 | . 5 1 11 . . Track 2 | . . . 2 . . Botnet 14 | . 5 1 8 . . Operators 1 | . . . 1 . . Fabricators . | . . . . . . Repair Stations . | . . . . . . Recycling Units 3 | . 2 . 1 . . Tunnel 3 | . 2 . 1 . . Scanalyzers . | . . . . . . Garrison Access . | . . . . . . Data Cores Recovered 1 | . 1 . . . . Used . | . . . . . . Hacking Detections 14 | . 6 . 8 . . Full Trace Events . | . . . . . . Feedback Events . | . . . . . . Feedback Blocked . | . . . . . . Robot Schematics Acquired . | . . . . . . Robots Built . | . . . . . . Matter . | . . . . . . Time . | . . . . . . Total Robot Build Rating . | . . . . . . Part Schematics Acquired . | . . . . . . Parts Built . | . . . . . . Matter . | . . . . . . Time . | . . . . . . Total Part Build Rating . | . . . . . . Parts Repaired . | . . . . . . Time . | . . . . . . Parts Recycled . | . . . . . . Recycled Matter . | . . . . . . Retrieved Matter . | . . . . . . Retrieved Components . | . . . . . . Parts Scanalyzed . | . . . . . . Part Schematics Acquired . | . . . . . . Parts Damaged . | . . . . . . Bothacking | -11 -10 -10 -9 -9 -9 ------------ Run | Scr Mat Min Mat Min Exi Used RIF Installer . | . . . . . . Robots Hacked . | . . . . . . Non-combat . | . . . . . . Combat . | . . . . . . Robot Hacks Applied . | . . . . . . Relay Couplers Released . | . . . . . . Robots Rewired . | . . . . . . Allies Hacked . | . . . . . . Hacks Repelled . | . . . . . . Allies | -11 -10 -10 -9 -9 -9 -------- Run | Scr Mat Min Mat Min Exi Total Allies 1 | . . . . 1 . Largest Group 1 | . . . . 1 . Highest-Rated Group 31 | . . . . 31 . Highest-Rated Ally 31 | . . . . 31 . Total Orders . | . . . . . . Ally Attacks 20 | . . . . . 20 Total Damage 1141 | . . . . . 1141 Kills 1 | . . . . . 1 Allies Corrupted . | . . . . . . Allies Melted . | . . . . . . Turrets Deployed 3 | . . . . . 3 Intel | -11 -10 -10 -9 -9 -9 ------- Run | Scr Mat Min Mat Min Exi Robot Analysis Total . | . . . . . . Derelict Logs Recovered 3 | . . 2 . 1 . Drone Launches . | . . . . . . Drone Recoveries . | . . . . . . Exploration | -11 -10 -10 -9 -9 -9 ------------- Run | Scr Mat Min Mat Min Exi Turns Passed 4124 | 56 1139 878 1540 277 234 Spaces Moved 4471 | 45 732 681 1867 828 318 Core 11 | 11 . . . . . Treads . | . . . . . . Legs 1535 | 34 732 681 88 . . Wheels . | . . . . . . Hover . | . . . . . . Flight 2925 | . . . 1779 828 318 Fastest Speed 26 | 50 120 120 29 29 26 Average Speed 60 | 102 120 120 34 29 28 Slowest Speed 127 | 120 120 120 127 29 96 Overloaded Moves . | . . . . . . Propulsion Burnouts . | . . . . . . Robots Hopped 38 | . . . 35 3 . Cave-ins Triggered . | . . . . . . Exploration Rate (%) 75 | 3 96 99 96 98 58 Regions Visited 5 Branch Regions 3 Pre-discovered Areas 4 | . 2 1 1 . . Known Exits Taken 4 | . 1 1 1 1 . Unknown Exits Taken 1 | 1 . . . . . Scrap Searched 4 | . . 3 . 1 . Spaces Dug 4 | . . . . . 4 Terrain Destroyed 206 | . . 11 163 16 16 Melee . | . . . . . . Projectile . | . . . . . . AOE 206 | . . 11 163 16 16 Actions | -11 -10 -10 -9 -9 -9 --------- Run | Scr Mat Min Mat Min Exi Total 5322 | 52 892 710 2419 845 404 Wait 460 | 2 89 6 314 12 37 Move 4394 | 44 731 680 1800 821 318 Hop 34 | . . . 31 3 . Pick Up 15 | 1 1 1 9 . 3 Fast Attach 33 | 5 6 1 21 . . Attach 2 | . . . 1 . 1 Detach . | . . . . . . Swap 7 | . . . 3 . 4 Drop 32 | . 2 1 25 . 4 Fire 227 | . 49 16 125 7 30 Melee 41 | . . . 39 . 2 Ram . | . . . . . . Kick . | . . . . . . Crush . | . . . . . . Escape Stasis . | . . . . . . Rewire . | . . . . . . Trap . | . . . . . . Miscellaneous 77 | . 14 5 51 2 5 Route ------- -11/Scrapyard -10/Materials (discovered 4 exits: *Mat x3 / *Min) -10/Mines (discovered 2 exits: *Mat x2) -9/Materials (discovered 5 exits: *Mat x3 / *Min x2) -9/Mines (discovered 4 exits: *Mat x2 / *Exi / *Zio) -9/Exiles (discovered 1 exit: [*Min]) History --------- Turn | Location | Event 1 | -11/Scrapyard | Upgraded with Propulsion slot (x1) 1 | -11/Scrapyard | Upgraded with Utility slot (x2) 1 | -11/Scrapyard | Upgraded with Weapon slot (x1) 12 | -11/Scrapyard | Discovered new exit (range 15) 57 | -11/Scrapyard | Entered Materials 299 | -10/Materials | Reached level 2 302 | -10/Materials | Upgraded with Utility slot (x1) 305 | -10/Materials | Build established: Mutant 371 | -10/Materials | Discovered new exit (range 16) 436 | -10/Materials | Discovered new exit (range 6) 744 | -10/Materials | Discovered new exit (range 7) 770 | -10/Materials | Identified exit to Materials 982 | -10/Materials | Discovered exit to Materials (range 14) 1194 | -10/Materials | Identified exit to Mines 1196 | -10/Materials | Entered Mines 1198 | -10/Mines | Reached level 3 1205 | -10/Mines | Discovered exit to Materials (range 11) 1208 | -10/Mines | Upgraded with Propulsion slot (x1) 1688 | -10/Mines | Received a Rocket Launcher from a helpful Derelict 1836 | -10/Mines | Discovered exit to Materials (range 15) 2074 | -10/Mines | Entered Materials 2076 | -9/Materials | Reached level 4 2076 | -9/Materials | Upgraded with Utility slot (x1) 2259 | -9/Materials | Reached level 5 2274 | -9/Materials | Upgraded with Propulsion slot (x1) 2501 | -9/Materials | Discovered new exit (range 12) 2504 | -9/Materials | Identified exit to Materials 2567 | -9/Materials | Reached level 6 2572 | -9/Materials | Upgraded with Weapon slot (x1) 2656 | -9/Materials | Discovered new exit (range 15) 2889 | -9/Materials | Discovered new exit (range 19) 2902 | -9/Materials | Discovered exit to Materials (range 20) 2971 | -9/Materials | Reached level 7 3023 | -9/Materials | Discovered exit to Materials (range 16) 3067 | -9/Materials | Build established: Hacker-Sprinter 3200 | -9/Materials | Reached level 8 3214 | -9/Materials | Upgraded with Utility slot (x1) 3395 | -9/Materials | Identified exit to Mines 3593 | -9/Materials | Reached level 9 3614 | -9/Materials | Entered Mines 3673 | -9/Mines | Discovered exit to Materials (range 11) 3684 | -9/Mines | A Derelict revealed a hidden shortcut to a safe place 3687 | -9/Mines | Identified exit to Zion 3753 | -9/Mines | Deemed a non-threat by the Exiles lab entrance 3753 | -9/Mines | Discovered new exit (range 5) 3844 | -9/Mines | Discovered exit to Materials (range 13) 3845 | -9/Mines | Received a Mining Laser from a helpful Derelict 3891 | -9/Mines | Identified exit to Exiles 3891 | -9/Mines | Entered Exiles 3895 | -9/Exiles | Discovered new exit (range 15) 3899 | -9/Exiles | Met 8R-AWN 3903 | -9/Exiles | Met EX-HEX 3911 | -9/Exiles | Met EX-BIN 3916 | -9/Exiles | Aligned with FarCom system 3916 | -9/Exiles | Given EX-Vault access code 3923 | -9/Exiles | Opened EX-Vault 3927 | -9/Exiles | Found Modified TNC 3929 | -9/Exiles | DAS Turret deployed 3934 | -9/Exiles | Warned to stay clear of 0b10 Research branches 3961 | -9/Exiles | Attacked by the Exiles 4006 | -9/Exiles | Destroyed 7 combat bots 4062 | -9/Exiles | Core integrity fell below 50% 4079 | -9/Exiles | Found Deploy-a-Sentry 4083 | -9/Exiles | DAS Turret deployed 4084 | -9/Exiles | Found Deploy-a-Sentry 4103 | -9/Exiles | Allies destroyed 8R-AWN 4115 | -9/Exiles | Core integrity fell below 20% 4117 | -9/Exiles | DAS Turret deployed 4125 | -9/Exiles | Destroyed by DAS Turret with DAS Cannon Last Messages --------------- 04087_ HV Slug penetrates Wall. 04092_ 8R-AWN suffers critical hit. 04092_ 8R-AWN knocked back. 04095_ Destroyed Prototype Protection. 04096_ Penetrated by HV Slug. 04096_ HV Slug penetrates Wall. 04096_ Penetrated by HV Slug. 04096_ HV Slug penetrates Wall. 04101_ Penetrated by HV Slug. 04101_ HV Slug penetrates Wall. 04101_ Penetrated by HV Slug. 04101_ HV Slug penetrates Wall. 04103_ 8R-AWN destroyed. 04106_ Acquired 85 matter. 04115_ Dropped Deploy-a-Sentry. 04117_ DAS Turret deployed. 04117_ DAS Turret knocked back. 04119_ DAS Turret suffers critical hit. 04123_ Knocked back. 04125_ Machine disabled. Map ----- +----------------------------------------------------+ | ?????????????????????????????????????????## | | ??????????????????????????????????????????# | | ???????????????????????????"??????????????#" | | ???????????????????????????""?????????????#" | | ??????????????????????????? ?????????????# | | ????????????????????????????" ???????????##" # | | ????????????????????????????# ?????????##"" | | ???????????????????##?????### ##??######"" # | | ????????????????? """#####X# #"###""""""" | | ????????????????? """""" " "" | | ???????????????? "" """ " | | ???????????????? " " | | ???????????????? | | ?????????????????# | | ??????????????????# | | ???????????????????# | | ????????????????????#" | | ????????????????????#""" t """""" | | ???????????????????##" ######""" | | ???????????????????#"" ""##????#####" | | ??????????????????##""" """##?????????## | | ??????????????????#""" """##???????????# | | ??????????????????#""" ""#????????????# | | ??????????????????#"" ###???????????" | | ??????????????????#""" #?????????"" | | ??????????????????#"" t @ "??" | | ??????????????????##" | | ???????????????????#"""" | | ???????????????????## | | ????????????????????#" " "" | | ????????????????????#"""" ""##??##"" | | ????????????????????#"" ""###?????## | | ????????????????????#" """"##????????? | | ?????????????????????""" """#?????????? | | ????????????????????## ""???????????? | | ?????????????????????#"" """#???????????? | | ??????????????????????#""" ##???????????? | | ???????????????????????#"""" #?????????????? | | ?????????????????????????# #?????????????? | | ????????????????????????????## ???????????????? | | ??????????????????????????????# ?????????????????? | | ?????????????????????????????????????????????????? | | ?????????????????????????????????????????????????? | | ?????????????????????????????????????????????????? | | ?????????????????????????????????????????????????? | | ?????????????????????????????????????????????????? | | ?????????????????????????????????????????????????? | | ?????????????????????????????????????????????????? | | ?????????????????????????????????????????????????? | | ?????????????????????????????????????????????????? | +----------------------------------------------------+ Best States ------------- Heat Dissipation 81 Energy Generation 19 Energy Capacity 280 Matter Stores 300 Matter Capacity 300 Sight Range 16 Terrain Scan Density 10 Armor Coverage 375 Evasion (%) 64 Offensive Hacking 30 Defensive Hacking 5 Item Schematics ----------------- None Robot Schematics ------------------ None Fabricated ------------ Nothing Alien Tech Used ----------------- None Achievements -------------- None Challenges ------------ None RPGLIKE | -11 -10 -10 -9 -9 -9 --------- Run | Scr Mat Min Mat Min Exi Levels Raised 8 | . 1 1 6 . . XP Earned 15682 | 3000 2525 1275 8229 484 169 XP Spent 14730 | 2870 1600 1400 8860 . . Upgrades 25 | 8 2 3 12 . . Propulsion Slot 3 | 1 . 1 1 . . Utility Slot 5 | 2 1 . 2 . . Weapon Slot 2 | 1 . . 1 . . Core Integrity 2 | . . . 2 . . Heat Dissipation 2 | 2 . . . . . Energy Generation 1 | . . . 1 . . Mass Support 1 | . . . 1 . . Inventory Capacity 5 | 1 1 . 3 . . Ranged Accuracy 1 | . . . 1 . . Hack Attack % 2 | 1 . 1 . . . Hack Defense % 1 | . . 1 . . . Protomatter Created 687 | . 162 44 467 16 -2 Integrity Restored 1558 | . 292 97 1048 16 105 Core 1276 | . 237 61 861 12 105 Parts 282 | . 55 36 187 4 . Protomatter Decayed 153 | . 59 8 76 10 . Game ------ Seed GreatLightSink Manual? 0 Play Time 00:42:53 Cumulative 994.4 hours Start 2020.01.10 @ 09:22:12 End 2020.01.10 @ 10:02:48 Sessions 1 Manual Loads 0 Difficulty Rogue Special Mode Winter2019/RPGLIKE Game No. 318 Rogue 318 Adventurer 0 Explorer 0 Win Type - Total 72 Types 14/7/32/4/1/2/12 Lore% 97 Gallery% 95 Achievement% 84 Wizard Run 0 Options --------- ASCII 0 Keyboard 0 Movement Numpad Keybinds 0 Fullscreen 1 Font 18/SmallcapsGlow Map View 76x50 Tactical HUD 1 Map Filters NONE Filters NONE Steam 1 RUN: e1471295-a3c0-4ef5-91fa-ed7f4c98e81a